fUST/lending_fUST_20260601
["ID","MTS","AMOUNT","RATE_DAILY","PERIOD"]
[423607031,1780258250000,-742.65009385,0.000188,2]
[423607030,1780258250000,-1694.20670424,0.000188,2]
[423607036,1780258250000,-352.049915,0.00018904,2]
[423607028,1780258250000,-196.85699901,0.00018648,2]
[423607002,1780258250000,-1811.41,0.0001863,2]
[423607025,1780258250000,-500.0,0.0001863,2]
[423607010,1780258250000,-2345.73,0.0001863,2]
[423606989,1780258250000,-500.0,0.0001863,2]
[423607008,1780258250000,-500.0,0.0001863,2]
[423607033,1780258250000,-500.0,0.00018904,2]
[423606974,1780258250000,-1190.19,0.00018356,2]
[423606985,1780258250000,-236.18605585,0.000186,2]
[423606984,1780258250000,-1885.59180626,0.00018405,2]
[423606977,1780258250000,-733.76,0.00018356,2]
[423606978,1780258250000,-500.0,0.00018356,2]
[423606979,1780258250000,-11665.24,0.00018356,2]
[423606976,1780258250000,-606.57,0.00018356,2]
[423606980,1780258250000,-500.0,0.00018356,2]
[423606981,1780258250000,-1798.09,0.00018356,2]
[423606982,1780258250000,-583.62,0.00018356,2]
[423606983,1780258250000,-250.0,0.00018388,2]
[423606988,1780258250000,-697.8803,0.0001863,2]
[423607000,1780258250000,-151.0,0.0001863,2]
[423606986,1780258250000,-1694.20670424,0.000186,2]
[423606993,1780258250000,-1298.201093,0.0001863,2]
[423606987,1780258250000,-742.65009385,0.000186,2]
[423606990,1780258250000,-151.0,0.0001863,2]
[423606998,1780258250000,-1164.9,0.0001863,2]
[423606994,1780258250000,-1298.201093,0.0001863,2]
[423606991,1780258250000,-151.0,0.0001863,2]
[423606995,1780258250000,-151.0,0.0001863,2]
[423606992,1780258250000,-151.0,0.0001863,2]
[423606996,1780258250000,-1298.201093,0.0001863,2]
[423607011,1780258250000,-786.17,0.0001863,2]
[423606999,1780258250000,-151.0,0.0001863,2]
[423607004,1780258250000,-910.32,0.0001863,2]
[423607006,1780258250000,-332.505076,0.0001863,2]
[423606997,1780258250000,-1298.201093,0.0001863,2]
[423607035,1780258250000,-352.049915,0.00018904,2]
[423606975,1780258250000,-501.53,0.00018356,2]
[423607026,1780258250000,-1798.09,0.0001863,2]
[423607066,1780258250000,-1164.9,0.00019178,2]
[423607073,1780258250000,-677.48,0.00019178,2]
[423607077,1780258250000,-1401.86,0.00019178,2]
[423607075,1780258250000,-672.48,0.00019178,2]
[423607076,1780258250000,-300.0,0.00019178,2]
[423607085,1780258250000,-11665.24,0.00019178,2]
[423607078,1780258250000,-862.52,0.00019178,2]
[423607079,1780258250000,-654.99,0.00019178,2]
[423607084,1780258250000,-500.0,0.00019178,2]
[423607074,1780258250000,-1517.97,0.00019178,2]
[423607082,1780258250000,-606.57,0.00019178,2]
[423607081,1780258250000,-501.53,0.00019178,2]
[423607083,1780258250000,-733.76,0.00019178,2]
[423607070,1780258250000,-743.79,0.00019178,2]
[423607086,1780258250000,-246.72,0.00019178,2]
[423607088,1780258250000,-583.62,0.00019178,2]
[423607098,1780258250000,-151.0,0.00019452,2]
[423607099,1780258250000,-532.408039,0.00019452,2]
[423607087,1780258250000,-1798.09,0.00019178,2]
[423607089,1780258250000,-236.18605585,0.000192,2]
[423607091,1780258250000,-742.65009385,0.000192,2]
[423607092,1780258250000,-196.856999,0.0001925,2]
[423607095,1780258250000,-742.65009385,0.000194,2]
[423607093,1780258250000,-236.18605585,0.000194,2]
[423607090,1780258250000,-1694.20670424,0.000192,2]
[423607097,1780258250000,-167.37,0.00019452,2]
[423607096,1780258250000,-697.8803,0.00019452,2]
[423607038,1780258250000,-1164.9,0.00018904,2]
[423607080,1780258250000,-1190.19,0.00019178,2]
[423607069,1780258250000,-910.32,0.00019178,2]
[423607094,1780258250000,-1694.20670424,0.000194,2]
[423607065,1780258250000,-500.0,0.00019178,2]
[423607068,1780258250000,-1811.41,0.00019178,2]
[423607043,1780258250000,-743.79,0.00018904,2]
[423607040,1780258250000,-1811.41,0.00018904,2]
[423607041,1780258250000,-910.32,0.00018904,2]
[423607045,1780258250000,-786.17,0.00018904,2]
[423607042,1780258250000,-234.05,0.00018904,2]
[423607044,1780258250000,-2345.73,0.00018904,2]
[423607046,1780258250000,-677.48,0.00018904,2]
[423607047,1780258250000,-1517.97,0.00018904,2]
[423607049,1780258250000,-1401.86,0.00018904,2]
[423607050,1780258250000,-862.52,0.00018904,2]
[423607051,1780258250000,-654.99,0.00018904,2]
[423607053,1780258250000,-501.53,0.00018904,2]
[423607048,1780258250000,-672.48,0.00018904,2]
[423607039,1780258250000,-1353.93,0.00018904,2]
[423607059,1780258250000,-1798.09,0.00018904,2]
[423607067,1780258250000,-1353.93,0.00019178,2]
[423607063,1780258250000,-742.65009385,0.00019,2]
[423607062,1780258250000,-1694.20670424,0.00019,2]
[423607060,1780258250000,-583.62,0.00018904,2]
[423607058,1780258250000,-500.0,0.00018904,2]
[423607072,1780258250000,-786.17,0.00019178,2]
[423607064,1780258250000,-697.8803,0.00019178,2]
[423607061,1780258250000,-236.18605585,0.00019,2]
[423607056,1780258250000,-500.0,0.00018904,2]
[423607055,1780258250000,-733.76,0.00018904,2]
[423607057,1780258250000,-11665.24,0.00018904,2]
[423607054,1780258250000,-606.57,0.00018904,2]
[423607052,1780258250000,-1190.19,0.00018904,2]
[423607071,1780258250000,-2345.73,0.00019178,2]
[423607140,1780258251000,-1190.19,0.00019726,2]
[423607142,1780258251000,-606.57,0.00019726,2]
[423607148,1780258251000,-697.9668,0.0002,2]
[423607144,1780258251000,-629.56,0.00019726,2]
[423607145,1780258251000,-11665.24,0.00019726,2]
[423607133,1780258251000,-786.17,0.00019726,2]
[423607138,1780258251000,-862.52,0.00019726,2]
[423607135,1780258251000,-1517.97,0.00019726,2]
[423607137,1780258251000,-1401.86,0.00019726,2]
[423607136,1780258251000,-672.48,0.00019726,2]
[423607134,1780258251000,-677.48,0.00019726,2]
[423607139,1780258251000,-654.99,0.00019726,2]
[423607150,1780258251000,-151.0,0.0002,2]
[423607143,1780258251000,-733.76,0.00019726,2]
[423607141,1780258251000,-501.53,0.00019726,2]
[423607147,1780258251000,-583.62,0.00019726,2]
[423607149,1780258251000,-151.0,0.0002,2]
[423607151,1780258251000,-300.0,0.0002,4]
[423607146,1780258251000,-1798.09,0.00019726,2]
[423607156,1780258251000,-743.92,0.0002,2]
[423607155,1780258251000,-910.46923767,0.0002,2]
[423607153,1780258251000,-1354.16066726,0.0002,2]
[423607154,1780258251000,-1811.5278547,0.0002,2]
[423607159,1780258251000,-677.66,0.0002,2]
[423607157,1780258251000,-2345.73069138,0.0002,2]
[423607158,1780258251000,-786.1720391,0.0002,2]
[423607132,1780258251000,-2345.73,0.00019726,2]
[423607152,1780258251000,-1165.05654684,0.0002,2]
[423607131,1780258251000,-743.79,0.00019726,2]
[423607116,1780258251000,-862.52,0.00019452,2]
[423607128,1780258251000,-1353.93,0.00019726,2]
[423607101,1780258251000,-532.408039,0.00019452,2]
[423607103,1780258251000,-1164.9,0.00019452,2]
[423607112,1780258251000,-677.48,0.00019452,2]
[423607111,1780258251000,-786.17,0.00019452,2]
[423607100,1780258251000,-532.408039,0.00019452,2]
[423607102,1780258251000,-532.408039,0.00019452,2]
[423607104,1780258251000,-1353.93,0.00019452,2]
[423607108,1780258251000,-151.0,0.00019452,2]
[423607107,1780258251000,-151.0,0.00019452,2]
[423607109,1780258251000,-743.79,0.00019452,2]
[423607110,1780258251000,-2345.73,0.00019452,2]
[423607105,1780258251000,-1811.41,0.00019452,2]
[423607106,1780258251000,-910.32,0.00019452,2]
[423607129,1780258251000,-1811.41,0.00019726,2]
[423607114,1780258251000,-672.48,0.00019452,2]
[423607115,1780258251000,-1401.86,0.00019452,2]
[423607120,1780258251000,-606.57,0.00019452,2]
[423607113,1780258251000,-1517.97,0.00019452,2]
[423607124,1780258251000,-1798.09,0.00019452,2]
[423607117,1780258251000,-654.99,0.00019452,2]
[423607121,1780258251000,-733.76,0.00019452,2]
[423607119,1780258251000,-501.53,0.00019452,2]
[423607123,1780258251000,-11665.24,0.00019452,2]
[423607122,1780258251000,-500.0,0.00019452,2]
[423607126,1780258251000,-697.8803,0.00019726,2]
[423607125,1780258251000,-583.62,0.00019452,2]
[423607127,1780258251000,-1164.9,0.00019726,2]
[423607130,1780258251000,-910.32,0.00019726,2]
[423607118,1780258251000,-1190.19,0.00019452,2]
[423607161,1780258251000,-672.49,0.0002,2]
[423607164,1780258251000,-655.04471341,0.0002,2]
[423607162,1780258251000,-1401.86048694,0.0002,2]
[423607202,1780258251000,-151.07,0.000218,2]
[423607200,1780258251000,-151.06,0.000214,2]
[423607192,1780258251000,-252.330116,0.0002106,2]
[423607197,1780258251000,-2884.62647883,0.00021064,120]
[423607191,1780258251000,-151.0,0.0002106,2]
[423607198,1780258251000,-151.0,0.00021092,6]
[423607199,1780258251000,-151.07,0.000214,2]
[423607196,1780258251000,-332.505076,0.0002106,2]
[423607214,1780258251000,-321.0,0.00023576,7]
[423607206,1780258251000,-151.07,0.000222,2]
[423607215,1780258251000,-321.0,0.0002385,7]
[423607213,1780258251000,-321.0,0.00023,7]
[423607204,1780258251000,-200.0,0.00022173,2]
[423607194,1780258251000,-332.505076,0.0002106,2]
[423607207,1780258251000,-151.06,0.000222,2]
[423607208,1780258251000,-767.37531181,0.000223,30]
[423607211,1780258251000,-185.0,0.00022816,2]
[423607209,1780258251000,-268.463,0.00022816,2]
[423607212,1780258251000,-475.506,0.00022816,2]
[423607210,1780258251000,-1408.011,0.00022816,2]
[423607216,1780258251000,-321.0,0.00024124,7]
[423607219,1780258251000,-797.0,0.000252,2]
[423607218,1780258251000,-321.0,0.00024467,7]
[423607222,1780258251000,-321.0,0.00026718,7]
[423607217,1780258251000,-321.0,0.00024397,7]
[423607220,1780258251000,-332.0,0.0002569,7]
[423607160,1780258251000,-1518.09318318,0.0002,2]
[423607223,1780258251000,-153.28562773,0.00026849,2]
[423607205,1780258251000,-203.81519747,0.00022173,2]
[423607203,1780258251000,-151.06,0.000218,2]
[423607221,1780258251000,-321.0,0.0002569,7]
[423607193,1780258251000,-332.505076,0.0002106,2]
[423607201,1780258251000,-767.37531181,0.000217,30]
[423607167,1780258251000,-606.80608683,0.0002,2]
[423607168,1780258251000,-733.93,0.0002,2]
[423607169,1780258251000,-11665.30912431,0.0002,2]
[423607165,1780258251000,-1190.38,0.0002,2]
[423607175,1780258251000,-176.81162,0.00020548,2]
[423607173,1780258251000,-151.07,0.000205,2]
[423607174,1780258251000,-151.06,0.000205,2]
[423607163,1780258251000,-862.65,0.0002,2]
[423607170,1780258251000,-1798.22818369,0.0002,2]
[423607171,1780258251000,-583.72924376,0.0002,2]
[423607172,1780258251000,-2335.75713434,0.00020018,2]
[423607176,1780258251000,-151.06,0.00020548,2]
[423607186,1780258251000,-1298.201093,0.0002106,2]
[423607166,1780258251000,-501.61,0.0002,2]
[423607187,1780258251000,-1298.201093,0.0002106,2]
[423607195,1780258251000,-332.505076,0.0002106,2]
[423607188,1780258251000,-151.135417,0.0002106,2]
[423607190,1780258251000,-1298.201093,0.0002106,2]
[423607179,1780258251000,-151.07,0.00021,2]
[423607184,1780258251000,-151.0,0.0002106,2]
[423607183,1780258251000,-151.0,0.0002106,2]
[423607185,1780258251000,-270.88973,0.0002106,2]
[423607180,1780258251000,-151.06,0.00021,2]
[423607181,1780258251000,-99999.6,0.0002106,30]
[423607178,1780258251000,-151.0,0.00021,6]
[423607189,1780258251000,-1298.201093,0.0002106,2]
[423607177,1780258251000,-151.05,0.00020548,2]
[423607182,1780258251000,-767.37531181,0.0002106,30]
[423607245,1780258252000,-500.0,0.00014246,2]
[423607237,1780258252000,-321.0,0.0002936,14]
[423607244,1780258252000,-3807.38232055,0.00029536,2]
[423607243,1780258252000,-23393.84040368,0.00029536,2]
[423607241,1780258252000,-470.29909502,0.00029536,2]
[423607242,1780258252000,-672.2460796,0.00029536,2]
[423607239,1780258252000,-199.94144,0.00029534,120]
[423607240,1780258252000,-199.94144,0.00029534,14]
[423607238,1780258252000,-200.0,0.00029418,2]
[423607235,1780258252000,-200.0,0.00028996,2]
[423607229,1780258252000,-276.06049974,0.00028026,5]
[423607234,1780258252000,-321.0,0.00028773,14]
[423607236,1780258252000,-233.5461872,0.00029237,2]
[423607232,1780258252000,-200.0,0.00028573,2]
[423607226,1780258252000,-321.0,0.00027745,14]
[423607227,1780258252000,-500.46519074,0.00027988,10]
[423607228,1780258252000,-1500.0,0.00028,15]
[423607230,1780258252000,-321.0,0.00028137,14]
[423607231,1780258252000,-200.0,0.00028151,2]
[423607225,1780258252000,-200.0,0.00027728,2]
[423607224,1780258252000,-321.0,0.00026913,7]
[423607246,1780258252000,-500.0,0.0001452,2]
[423607233,1780258252000,-1000.0,0.00028744,5]
[423607248,1780258252000,-5755.91344323,0.00029536,2]
[423607259,1780258252000,-352.049915,0.00029536,7]
[423607247,1780258252000,-500.0,0.00014794,2]
[423607270,1780258252000,-500.0,0.00014246,2]
[423607269,1780258252000,-2069.88656465,0.00013832,2]
[423607272,1780258252000,-500.0,0.00014794,2]
[423607268,1780258252000,-2900.45950676,0.00013832,2]
[423607271,1780258252000,-500.0,0.0001452,2]
[423607266,1780258252000,-500.0,0.00013698,2]
[423607250,1780258252000,-4107.12926576,0.00029536,2]
[423607260,1780258252000,-1551.2554219,0.00029536,2]
[423607264,1780258252000,-162.380719,0.00029999,5]
[423607258,1780258252000,-352.049915,0.00029536,7]
[423607261,1780258252000,-167.0,0.00029711,7]
[423607267,1780258252000,-29.65392859,0.00013832,2]
[423607265,1780258252000,-179.22984737,0.00029999,5]
[423607262,1780258252000,-321.0,0.000298,14]
[423607249,1780258252000,-974.73856006,0.00029536,2]
[423607251,1780258252000,-2304.04507,0.00029536,2]
[423607256,1780258252000,-352.049915,0.00029536,7]
[423607252,1780258252000,-2251.014864,0.00029536,2]
[423607254,1780258252000,-500.0,0.00013972,2]
[423607255,1780258252000,-2413.08151932,0.00029536,2]
[423607257,1780258252000,-352.049915,0.00029536,7]
[423607263,1780258252000,-200.0,0.0002984,2]
[423607253,1780258252000,-500.0,0.00013698,2]
[423607274,1780258253000,-500.0,0.00015342,2]
[423607273,1780258253000,-500.0,0.00015068,2]
[423607276,1780258253000,-500.0,0.0001589,2]
[423607275,1780258253000,-500.0,0.00015616,2]
[423607280,1780258253000,-16.11334183,0.00029999,5]
[423607278,1780258253000,-500.0,0.00016438,2]
[423607277,1780258253000,-500.0,0.00016164,2]
[423607281,1780258253000,-162.38071901,0.00029999,5]
[423607286,1780258253000,-500.0,0.00029999,5]
[423607283,1780258253000,-156.587,0.00029999,5]
[423607287,1780258253000,-537.6845,0.00029999,5]
[423607289,1780258253000,-320.51641628,0.00029999,5]
[423607291,1780258253000,-197.92528842,0.00029999,5]
[423607290,1780258253000,-500.0,0.00029999,5]
[423607284,1780258253000,-162.380719,0.00029999,5]
[423607285,1780258253000,-168.3888056,0.00029999,5]
[423607279,1780258253000,-500.0,0.00016712,2]
[423607282,1780258253000,-151.0,0.00029999,5]
[423607288,1780258253000,-201.8946166,0.00029999,5]
[423607295,1780258493000,151.0,0.0002,120]
[423607299,1780258554000,155.21,8.201e-05,2]
[423607300,1780258555000,155.2,8.201e-05,2]
[423607303,1780258745000,-157.64343802,0.00010959,10]
[423607326,1780259214000,-500.0,8.514e-05,2]
[423607327,1780259225000,-500.0,8.514e-05,2]
[423607331,1780259236000,-374.16224305,8.6e-05,2]
[423607332,1780259246000,-374.16224305,8.514e-05,2]
[423607333,1780259257000,-500.0,8.514e-05,2]
[423607336,1780259268000,-500.0,8.514e-05,2]
[423607338,1780259278000,-304.85378387,8.514e-05,2]
[423607339,1780259289000,-304.85378387,8.514e-05,2]
[423607340,1780259300000,-500.0,8.514e-05,2]
[423607341,1780259311000,-500.0,8.514e-05,2]
[423607354,1780259366000,-6661.50210284,0.00012019,2]
[423607345,1780259366000,-2016.13018921,8.514e-05,2]
[423607347,1780259366000,-184.0,0.00010959,3]
[423607349,1780259366000,-827.0,0.00011881,2]
[423607346,1780259366000,-392.22422851,8.6e-05,2]
[423607352,1780259366000,-300.0,0.00012017,2]
[423607351,1780259366000,-300.0,0.00012017,2]
[423607348,1780259366000,-160.09183007,0.00010959,7]
[423607353,1780259366000,-300.0,0.00012018,2]
[423607350,1780259366000,-1936.07603165,0.00011882,2]
[423607396,1780259432000,-500.0,0.00012254,2]
[423607368,1780259432000,-5000.0,0.00011899,2]
[423607370,1780259432000,-3338.49789716,0.00012019,2]
[423607372,1780259432000,-162.12731,0.00012063,2]
[423607374,1780259432000,-500.0,0.00012254,2]
[423607376,1780259432000,-500.0,0.00012254,2]
[423607380,1780259432000,-500.0,0.00012254,2]
[423607378,1780259432000,-500.0,0.00012254,2]
[423607394,1780259432000,-500.0,0.00012254,2]
[423607386,1780259432000,-500.0,0.00012254,2]
[423607382,1780259432000,-500.0,0.00012254,2]
[423607388,1780259432000,-500.0,0.00012254,2]
[423607384,1780259432000,-500.0,0.00012254,2]
[423607390,1780259432000,-500.0,0.00012254,2]
[423607392,1780259432000,-500.0,0.00012254,2]
[423607400,1780259432000,-500.0,0.00012254,2]
[423607409,1780259432000,-500.0,0.00012254,2]
[423607403,1780259432000,-500.0,0.00012254,2]
[423607412,1780259432000,-129.32073014,0.00012254,2]
[423607406,1780259432000,-500.0,0.00012254,2]
[423607619,1780259438000,-368.29988899,0.00012254,2]
[423607608,1780259438000,-370.67926986,0.00012254,2]
[423607616,1780259438000,-500.0,0.00012254,2]
[423607614,1780259438000,-500.0,0.00012254,2]
[423607610,1780259438000,-457.02084115,0.00012254,2]
[423607612,1780259438000,-500.0,0.00012254,2]
[423607925,1780259440000,-186.00845608,0.00012255,2]
[423607942,1780259440000,-300.0,0.00012258,2]
[423607921,1780259440000,-500.0,0.00012254,2]
[423607923,1780259440000,-500.0,0.00012254,2]
[423607951,1780259440000,-300.0,0.00012258,2]
[423607943,1780259440000,-300.0,0.00012258,2]
[423607949,1780259440000,-300.0,0.00012258,2]
[423607947,1780259440000,-300.0,0.00012258,2]
[423607930,1780259440000,-300.0,0.00012258,2]
[423607927,1780259440000,-300.0,0.00012258,2]
[423607938,1780259440000,-300.0,0.00012258,2]
[423607915,1780259440000,-500.0,0.00012254,2]
[423607936,1780259440000,-300.0,0.00012258,2]
[423607934,1780259440000,-300.0,0.00012258,2]
[423607932,1780259440000,-300.0,0.00012258,2]
[423607919,1780259440000,-500.0,0.00012254,2]
[423607917,1780259440000,-500.0,0.00012254,2]
[423607913,1780259440000,-131.70011101,0.00012254,2]
[423607909,1780259440000,-710.66587433,0.00012131,2]
[423607911,1780259440000,-3347.30062467,0.00012131,2]
[423607906,1780259440000,-558.0,0.00012131,2]
[423607883,1780259440000,-384.033501,0.00012131,2]
[423607940,1780259440000,-300.0,0.00012258,2]
[423607953,1780259440000,-300.0,0.00012258,2]
[423607945,1780259440000,-300.0,0.00012258,2]
[423607959,1780259440000,-233.42783898,0.00013598,2]
[423607957,1780259440000,-600.0,0.00012502,2]
[423607999,1780259440000,-500.0,0.00013698,2]
[423608002,1780259440000,-500.0,0.00013698,2]
[423607995,1780259440000,-500.0,0.00013698,2]
[423607997,1780259440000,-500.0,0.00013698,2]
[423607978,1780259440000,-500.0,0.00013698,2]
[423607975,1780259440000,-500.0,0.00013698,2]
[423607991,1780259440000,-500.0,0.00013698,2]
[423607985,1780259440000,-500.0,0.00013698,2]
[423607981,1780259440000,-500.0,0.00013698,2]
[423607989,1780259440000,-500.0,0.00013698,2]
[423607980,1780259440000,-500.0,0.00013698,2]
[423607993,1780259440000,-500.0,0.00013698,2]
[423607987,1780259440000,-500.0,0.00013698,2]
[423607955,1780259440000,-300.0,0.00012258,2]
[423607983,1780259440000,-500.0,0.00013698,2]
[423607968,1780259440000,-500.0,0.00013698,2]
[423607960,1780259440000,-185.59410215,0.00013598,2]
[423607966,1780259440000,-536.89178431,0.00013698,2]
[423608001,1780259440000,-500.0,0.00013698,2]
[423607962,1780259440000,-500.0,0.00013697,2]
[423607964,1780259440000,-215.83184875,0.00013697,2]
[423607972,1780259440000,-642.73434847,0.00013698,2]
[423607970,1780259440000,-500.0,0.00013698,2]
[423607974,1780259440000,-500.0,0.00013698,2]
[423608020,1780259441000,-500.0,0.00013698,2]
[423608031,1780259441000,-500.0,0.00013698,2]
[423608029,1780259441000,-500.0,0.00013698,2]
[423608024,1780259441000,-500.0,0.00013698,2]
[423608027,1780259441000,-500.0,0.00013698,2]
[423608018,1780259441000,-500.0,0.00013698,2]
[423608016,1780259441000,-500.0,0.00013698,2]
[423608012,1780259441000,-500.0,0.00013698,2]
[423608008,1780259441000,-165.37553995,0.00013698,2]
[423608010,1780259441000,-334.62446005,0.00013698,2]
[423608006,1780259441000,-500.0,0.00013698,2]
[423608004,1780259441000,-500.0,0.00013698,2]
[423608022,1780259441000,-500.0,0.00013698,2]
[423608014,1780259441000,-500.0,0.00013698,2]
[423608034,1780259441000,-500.0,0.00013698,2]
[423608032,1780259441000,-500.0,0.00013698,2]
[423608036,1780259441000,-500.0,0.00013698,2]
[423608040,1780259441000,-500.0,0.00013698,2]
[423608066,1780259441000,-165.04317973,0.00013698,2]
[423608063,1780259441000,-500.0,0.00013698,2]
[423608061,1780259441000,-309.95682027,0.00013698,2]
[423608055,1780259441000,-500.0,0.00013698,2]
[423608059,1780259441000,-190.04317973,0.00013698,2]
[423608053,1780259441000,-500.0,0.00013698,2]
[423608057,1780259441000,-500.0,0.00013698,2]
[423608049,1780259441000,-500.0,0.00013698,2]
[423608047,1780259441000,-500.0,0.00013698,2]
[423608044,1780259441000,-500.0,0.00013698,2]
[423608046,1780259441000,-500.0,0.00013698,2]
[423608038,1780259441000,-266.02562041,0.00013698,2]
[423608042,1780259441000,-500.0,0.00013698,2]
[423608051,1780259441000,-580.13231628,0.00013698,2]
[423608390,1780259443000,-501.93,0.00013698,2]
[423608381,1780259443000,-500.0,0.00013698,2]
[423608382,1780259443000,-500.0,0.00013698,2]
[423608392,1780259443000,-500.0,0.00013698,2]
[423608384,1780259443000,-500.0,0.00013698,2]
[423608394,1780259443000,-225.41657688,0.00013698,2]
[423608408,1780259443000,-500.0,0.00013698,2]
[423608406,1780259443000,-500.0,0.00013698,2]
[423608404,1780259443000,-500.0,0.00013698,2]
[423608386,1780259443000,-500.0,0.00013698,2]
[423608396,1780259443000,-119.68342312,0.00013698,2]
[423608398,1780259443000,-500.0,0.00013698,2]
[423608400,1780259443000,-76.01657688,0.00013698,2]
[423608379,1780259443000,-158.67,0.00013698,2]
[423608388,1780259443000,-500.0,0.00013698,2]
[423608377,1780259443000,-500.0,0.00013698,2]
[423608363,1780259443000,-500.0,0.00013698,2]
[423608373,1780259443000,-500.0,0.00013698,2]
[423608341,1780259443000,-454.84682027,0.00013698,2]
[423608343,1780259443000,-500.0,0.00013698,2]
[423608347,1780259443000,-500.0,0.00013698,2]
[423608345,1780259443000,-500.0,0.00013698,2]
[423608349,1780259443000,-175.92,0.00013698,2]
[423608355,1780259443000,-500.0,0.00013698,2]
[423608351,1780259443000,-500.0,0.00013698,2]
[423608357,1780259443000,-500.0,0.00013698,2]
[423608353,1780259443000,-500.0,0.00013698,2]
[423608361,1780259443000,-500.0,0.00013698,2]
[423608359,1780259443000,-500.0,0.00013698,2]
[423608367,1780259443000,-500.0,0.00013698,2]
[423608365,1780259443000,-500.0,0.00013698,2]
[423608369,1780259443000,-296.07644724,0.00013698,2]
[423608371,1780259443000,-203.92355276,0.00013698,2]
[423608375,1780259443000,-500.0,0.00013698,2]
[423608421,1780259443000,-198.5244615,0.00013699,2]
[423608402,1780259443000,-423.98342312,0.00013698,2]
[423608425,1780259443000,-667.15175559,0.00013699,2]
[423608457,1780259443000,-500.0,0.00013972,2]
[423608451,1780259443000,-500.0,0.00013972,2]
[423608494,1780259443000,-241.98559023,0.00013972,2]
[423608484,1780259443000,-500.0,0.00013972,2]
[423608466,1780259443000,-322.93586196,0.00013972,2]
[423608482,1780259443000,-500.0,0.00013972,2]
[423608488,1780259443000,-628.02,0.00013972,2]
[423608480,1780259443000,-500.0,0.00013972,2]
[423608468,1780259443000,-500.0,0.00013972,2]
[423608490,1780259443000,-261.40364311,0.00013972,2]
[423608492,1780259443000,-258.01440977,0.00013972,2]
[423608474,1780259443000,-137.33182923,0.00013972,2]
[423608477,1780259443000,-500.0,0.00013972,2]
[423608486,1780259443000,-428.49053664,0.00013972,2]
[423608410,1780259443000,-201.40217736,0.00013698,2]
[423608460,1780259443000,-500.0,0.00013972,2]
[423608433,1780259443000,-367.84821196,0.00013972,2]
[423608470,1780259443000,-72.56259607,0.00013972,2]
[423608439,1780259443000,-500.0,0.00013972,2]
[423608463,1780259443000,-500.0,0.00013972,2]
[423608427,1780259443000,-183.15858,0.00013699,2]
[423608412,1780259443000,-298.59782264,0.00013698,2]
[423608414,1780259443000,-500.0,0.00013698,2]
[423608423,1780259443000,-332.84824441,0.00013699,2]
[423608431,1780259443000,-205.31876768,0.0001391,2]
[423608419,1780259443000,-500.0,0.00013698,2]
[423608429,1780259443000,-720.0,0.00013752,2]
[423608445,1780259443000,-500.0,0.00013972,2]
[423608464,1780259443000,-500.0,0.00013972,2]
[423608448,1780259443000,-500.0,0.00013972,2]
[423608435,1780259443000,-500.0,0.00013972,2]
[423608443,1780259443000,-347.44845994,0.00013972,2]
[423608454,1780259443000,-500.0,0.00013972,2]
[423608441,1780259443000,-500.0,0.00013972,2]
[423608437,1780259443000,-500.0,0.00013972,2]